[Event "*** Titled Tuesday Blitz"]
[Site "Chess.com"]
[Date "2018.11.06"]
[Round "6"]
[White "ViktorMatviishen"]
[Black "Malev212"]
[Result "1-0"]
[WhiteElo "2473"]
[BlackElo "2604"]
[TimeControl "180+2"]
[EndTime "14:17:58 PST"]
[Termination "ViktorMatviishen won by resignation"]

1. c4 {[%clk 0:02:54.7]} 1... g6 {[%clk 0:03:00.7]} 2. d4 {[%clk 0:02:55.3]}
2... Bg7 {[%clk 0:03:01.9]} 3. Nc3 {[%clk 0:02:54]} 3... d6 {[%clk 0:03:03.1]}
4. e4 {[%clk 0:02:54.7]} 4... Nf6 {[%clk 0:03:04.1]} 5. Bd3 {[%clk 0:02:55.6]}
5... O-O {[%clk 0:03:04.8]} 6. Nge2 {[%clk 0:02:56.7]} 6... e5 {[%clk
0:03:05.6]} 7. d5 {[%clk 0:02:57.3]} 7... a5 {[%clk 0:03:07.1]} 8. O-O {[%clk
0:02:57.9]} 8... Na6 {[%clk 0:03:08]} 9. f3 {[%clk 0:02:56.4]} 9... Nd7 {[%clk
0:03:09.3]} 10. Be3 {[%clk 0:02:54]} 10... Ndc5 {[%clk 0:03:10.7]} 11. Bc2
{[%clk 0:02:55.1]} 11... f5 {[%clk 0:03:11.8]} 12. a3 {[%clk 0:02:51.5]} 12...
fxe4 {[%clk 0:03:09.6]} 13. fxe4 {[%clk 0:02:49.6]} 13... Bd7 {[%clk 0:03:08.8]}
14. Rxf8+ {[%clk 0:02:48.4]} 14... Qxf8 {[%clk 0:03:08.5]} 15. Qd2 {[%clk
0:02:49.2]} 15... a4 {[%clk 0:03:05.5]} 16. Rf1 {[%clk 0:02:50.1]} 16... Qe8
{[%clk 0:03:03.1]} 17. Qd1 {[%clk 0:02:39.9]} 17... b6 {[%clk 0:02:56]} 18. Nc1
{[%clk 0:02:41.1]} 18... Rb8 {[%clk 0:02:38.4]} 19. Nd3 {[%clk 0:02:39.7]} 19...
Nxd3 {[%clk 0:02:38.3]} 20. Qxd3 {[%clk 0:02:39.3]} 20... Nc5 {[%clk 0:02:39.9]}
21. Qe2 {[%clk 0:02:37.5]} 21... Qe7 {[%clk 0:02:36.2]} 22. Bxc5 {[%clk
0:02:32.7]} 22... bxc5 {[%clk 0:02:37.2]} 23. Bxa4 {[%clk 0:02:33.4]} 23... Bxa4
{[%clk 0:02:30.2]} 24. Nxa4 {[%clk 0:02:33.4]} 24... Bh6 {[%clk 0:02:31.7]} 25.
Nc3 {[%clk 0:02:29.9]} 25... Rb3 {[%clk 0:02:28.4]} 26. a4 {[%clk 0:02:24.2]}
26... Qg5 {[%clk 0:02:00.8]} 27. a5 {[%clk 0:02:16.2]} 27... Qe3+ {[%clk
0:01:47.5]} 28. Qxe3 {[%clk 0:02:16.8]} 28... Bxe3+ {[%clk 0:01:49.4]} 29. Kh1
{[%clk 0:02:18.3]} 29... Rxb2 {[%clk 0:01:51]} 30. a6 {[%clk 0:02:09.2]} 30...
Rb8 {[%clk 0:01:51.4]} 31. Nb5 {[%clk 0:02:06.7]} 31... Ra8 {[%clk 0:01:29.7]}
32. Ra1 {[%clk 0:02:07.4]} 32... Bd4 {[%clk 0:01:23.3]} 33. Ra2 {[%clk
0:02:08.7]} 1-0

[Event "*** Titled Tuesday Blitz"]
[Site "Chess.com"]
[Date "2018.11.06"]
[Round "6"]
[White "jacky72"]
[Black "BilodeauA"]
[Result "0-1"]
[WhiteElo "2700"]
[BlackElo "2845"]
[TimeControl "180+2"]
[EndTime "14:17:59 PST"]
[Termination "BilodeauA won by resignation"]

1. d4 {[%clk 0:03:01.9]} 1... d5 {[%clk 0:03:00.2]} 2. c4 {[%clk 0:03:00.6]}
2... dxc4 {[%clk 0:03:02.1]} 3. Nf3 {[%clk 0:03:01.9]} 3... a6 {[%clk
0:03:02.4]} 4. e3 {[%clk 0:02:59.5]} 4... Bg4 {[%clk 0:03:02.8]} 5. Bxc4 {[%clk
0:02:59.6]} 5... e6 {[%clk 0:03:03.9]} 6. h3 {[%clk 0:03:01.1]} 6... Bh5 {[%clk
0:03:04.5]} 7. Nc3 {[%clk 0:03:02.6]} 7... Nc6 {[%clk 0:03:05.8]} 8. O-O {[%clk
0:03:04.1]} 8... Nf6 {[%clk 0:03:06.6]} 9. Be2 {[%clk 0:03:01.3]} 9... Bd6
{[%clk 0:03:07.6]} 10. b3 {[%clk 0:02:59.1]} 10... O-O {[%clk 0:03:07.1]} 11.
Bb2 {[%clk 0:03:00.4]} 11... Qe7 {[%clk 0:03:08.4]} 12. Rc1 {[%clk 0:02:47.8]}
12... Rfd8 {[%clk 0:03:08.6]} 13. Na4 {[%clk 0:02:42.6]} 13... e5 {[%clk
0:03:06.9]} 14. dxe5 {[%clk 0:02:43.1]} 14... Nxe5 {[%clk 0:03:02.9]} 15. Nxe5
{[%clk 0:02:42.9]} 15... Bxe5 {[%clk 0:03:03]} 16. Qc2 {[%clk 0:02:44]} 16...
Bg6 {[%clk 0:03:00.8]} 17. Qc4 {[%clk 0:02:12.8]} 17... b5 {[%clk 0:02:48.3]}
18. Qc5 {[%clk 0:02:12.7]} 18... Qxc5 {[%clk 0:02:48.5]} 19. Rxc5 {[%clk
0:02:13.3]} 19... Bxb2 {[%clk 0:02:48.9]} 20. Nxb2 {[%clk 0:02:14.2]} 20... Rd2
{[%clk 0:02:50.6]} 21. Bf3 {[%clk 0:02:15.5]} 21... Be4 {[%clk 0:02:26.5]} 22.
Nd1 {[%clk 0:01:55.2]} 22... b4 {[%clk 0:02:27.7]} 23. Bxe4 {[%clk 0:01:51.4]}
23... Nxe4 {[%clk 0:02:28.3]} 24. Rc4 {[%clk 0:01:53.3]} 24... f5 {[%clk
0:02:25.2]} 25. Rxb4 {[%clk 0:01:36.2]} 25... Rad8 {[%clk 0:02:22.3]} 26. Rd4
{[%clk 0:01:36]} 26... R8xd4 {[%clk 0:02:20.3]} 27. exd4 {[%clk 0:01:37.9]}
27... Rxa2 {[%clk 0:02:18.3]} 28. Ne3 {[%clk 0:01:38]} 28... g6 {[%clk 0:02:18]}
29. Rc1 {[%clk 0:01:36.5]} 29... Nxf2 {[%clk 0:02:14.4]} 30. Rxc7 {[%clk
0:01:33.8]} 30... Ne4 {[%clk 0:02:15.4]} 31. Ra7 {[%clk 0:01:27.7]} 31... f4
{[%clk 0:02:14.3]} 32. Nd5 {[%clk 0:01:26.6]} 32... g5 {[%clk 0:02:15.4]} 33.
Re7 {[%clk 0:01:27.2]} 33... Ra1+ {[%clk 0:02:15.5]} 34. Kh2 {[%clk 0:01:28.2]}
34... Ng3 {[%clk 0:02:14.6]} 35. Nxf4 {[%clk 0:01:19.1]} 35... gxf4 {[%clk
0:02:13.1]} 36. Re8+ {[%clk 0:01:20.5]} 36... Kf7 {[%clk 0:02:14]} 37. Re1
{[%clk 0:01:22.4]} 37... Rxe1 {[%clk 0:02:14.7]} 0-1

[Event "*** Titled Tuesday Blitz"]
[Site "Chess.com"]
[Date "2018.11.06"]
[Round "6"]
[White "nitpicker"]
[Black "MishkaFighter"]
[Result "0-1"]
[WhiteElo "2173"]
[BlackElo "2275"]
[TimeControl "180+2"]
[EndTime "14:18:36 PST"]
[Termination "MishkaFighter won by resignation"]

1. d4 {[%clk 0:03:01.9]} 1... Nf6 {[%clk 0:02:59.9]} 2. c4 {[%clk 0:03:02.2]}
2... g6 {[%clk 0:03:01.1]} 3. Nc3 {[%clk 0:03:02.4]} 3... d5 {[%clk 0:03:02.2]}
4. Nf3 {[%clk 0:03:01.8]} 4... Bg7 {[%clk 0:03:03.1]} 5. Qb3 {[%clk 0:03:02.6]}
5... dxc4 {[%clk 0:03:01.9]} 6. Qxc4 {[%clk 0:03:04.5]} 6... O-O {[%clk
0:03:03.4]} 7. e4 {[%clk 0:03:05.3]} 7... Nc6 {[%clk 0:02:59.8]} 8. h3 {[%clk
0:02:46.6]} 8... e5 {[%clk 0:02:58.3]} 9. dxe5 {[%clk 0:02:30.3]} 9... Be6
{[%clk 0:02:57.5]} 10. Qa4 {[%clk 0:02:23.3]} 10... Nd7 {[%clk 0:02:47.1]} 11.
Be2 {[%clk 0:02:16.9]} 11... Ndxe5 {[%clk 0:02:47.6]} 12. O-O {[%clk 0:02:08.8]}
12... Nxf3+ {[%clk 0:02:47.6]} 13. Bxf3 {[%clk 0:02:08.1]} 13... Nd4 {[%clk
0:02:49]} 14. Bd1 {[%clk 0:01:48.2]} 14... c6 {[%clk 0:02:49.2]} 15. Ne2 {[%clk
0:01:20.8]} 15... b5 {[%clk 0:02:48.8]} 16. Qa3 {[%clk 0:01:20.3]} 16... Bc4
{[%clk 0:02:34.9]} 17. Nxd4 {[%clk 0:01:10]} 17... Bxd4 {[%clk 0:02:36]} 18. Re1
{[%clk 0:01:06.7]} 18... Qf6 {[%clk 0:02:36.5]} 19. Qg3 {[%clk 0:00:28.5]} 19...
Rfe8 {[%clk 0:02:26.2]} 20. a4 {[%clk 0:00:20.8]} 20... Bxb2 {[%clk 0:02:21.2]}
21. Bg5 {[%clk 0:00:21.8]} 21... Qg7 {[%clk 0:02:18.6]} 22. Rb1 {[%clk
0:00:22.3]} 22... Be5 {[%clk 0:02:13.6]} 23. f4 {[%clk 0:00:19.2]} 23... Bd4+
{[%clk 0:02:14.5]} 24. Kh2 {[%clk 0:00:20.1]} 24... h6 {[%clk 0:02:15.9]} 25.
Bh4 {[%clk 0:00:20.3]} 25... g5 {[%clk 0:02:11.2]} 26. Bxg5 {[%clk 0:00:09.4]}
26... hxg5 {[%clk 0:02:10.8]} 27. Qxg5 {[%clk 0:00:11.3]} 27... Qxg5 {[%clk
0:02:11.8]} 28. fxg5 {[%clk 0:00:13.2]} 28... Be5+ {[%clk 0:02:13.7]} 29. g3
{[%clk 0:00:14]} 29... Rad8 {[%clk 0:02:15.2]} 30. Bf3 {[%clk 0:00:14.3]} 30...
Rd2+ {[%clk 0:02:15.6]} 31. Bg2 {[%clk 0:00:15]} 31... Rd3 {[%clk 0:02:14.5]}
0-1

[Event "*** Titled Tuesday Blitz"]
[Site "Chess.com"]
[Date "2018.11.06"]
[Round "6"]
[White "TheBigBadChessDad"]
[Black "aRk_iN"]
[Result "1-0"]
[WhiteElo "2296"]
[BlackElo "2152"]
[TimeControl "180+2"]
[EndTime "14:18:43 PST"]
[Termination "TheBigBadChessDad won on time"]

1. d4 {[%clk 0:02:45.5]} 1... d5 {[%clk 0:03:00.3]} 2. Bf4 {[%clk 0:02:44.6]}
2... Nf6 {[%clk 0:03:00.2]} 3. e3 {[%clk 0:02:42.5]} 3... c5 {[%clk 0:03:01.4]}
4. c3 {[%clk 0:02:43.5]} 4... Nc6 {[%clk 0:03:02.2]} 5. Nd2 {[%clk 0:02:44.2]}
5... Bf5 {[%clk 0:03:03.1]} 6. Qb3 {[%clk 0:02:45.2]} 6... Qc8 {[%clk
0:03:01.8]} 7. Ngf3 {[%clk 0:02:37.5]} 7... e6 {[%clk 0:02:56.8]} 8. h3 {[%clk
0:02:32.6]} 8... h6 {[%clk 0:02:56.2]} 9. Ne5 {[%clk 0:02:25.1]} 9... Nd7 {[%clk
0:02:54.2]} 10. Nxd7 {[%clk 0:02:19.7]} 10... Qxd7 {[%clk 0:02:54.8]} 11. Be2
{[%clk 0:02:17.7]} 11... Be7 {[%clk 0:02:53.3]} 12. O-O {[%clk 0:02:17.9]} 12...
O-O {[%clk 0:02:54.9]} 13. Rac1 {[%clk 0:02:17.5]} 13... Rfc8 {[%clk 0:02:54.9]}
14. a3 {[%clk 0:02:06.6]} 14... a6 {[%clk 0:02:55.3]} 15. dxc5 {[%clk
0:02:03.3]} 15... Bxc5 {[%clk 0:02:54.8]} 16. Rfd1 {[%clk 0:02:04.1]} 16... b5
{[%clk 0:02:04.2]} 17. e4 {[%clk 0:01:54.5]} 17... dxe4 {[%clk 0:01:42.7]} 18.
Nxe4 {[%clk 0:01:54.6]} 18... Qa7 {[%clk 0:01:43]} 19. Nxc5 {[%clk 0:01:48.6]}
19... Qxc5 {[%clk 0:01:44.9]} 20. Bf3 {[%clk 0:01:29.3]} 20... Qb6 {[%clk
0:00:08.7]} 21. Rd6 {[%clk 0:01:23.5]} 1-0

[Event "*** Titled Tuesday Blitz"]
[Site "Chess.com"]
[Date "2018.11.06"]
[Round "6"]
[White "ahachess"]
[Black "HaryKane"]
[Result "0-1"]
[WhiteElo "2371"]
[BlackElo "2565"]
[TimeControl "180+2"]
[EndTime "14:18:53 PST"]
[Termination "HaryKane won by checkmate"]

1. d4 {[%clk 0:03:01.9]} 1... e6 {[%clk 0:03:01.2]} 2. c4 {[%clk 0:03:01.8]}
2... f5 {[%clk 0:03:02.5]} 3. Nc3 {[%clk 0:03:02.1]} 3... Nf6 {[%clk 0:03:02.8]}
4. Nf3 {[%clk 0:03:03.3]} 4... Bb4 {[%clk 0:03:04.3]} 5. g3 {[%clk 0:03:02.8]}
5... O-O {[%clk 0:03:03.3]} 6. Bg2 {[%clk 0:03:03.6]} 6... d6 {[%clk 0:03:04.8]}
7. O-O {[%clk 0:03:04.4]} 7... Bxc3 {[%clk 0:03:06.4]} 8. bxc3 {[%clk
0:03:05.4]} 8... Nc6 {[%clk 0:03:08.2]} 9. Qc2 {[%clk 0:03:00.3]} 9... Na5
{[%clk 0:03:04.7]} 10. Nd2 {[%clk 0:02:58]} 10... e5 {[%clk 0:02:59.5]} 11. Rd1
{[%clk 0:02:52.6]} 11... Qe8 {[%clk 0:02:52.2]} 12. e3 {[%clk 0:02:48.4]} 12...
e4 {[%clk 0:02:48.1]} 13. Ba3 {[%clk 0:02:44.5]} 13... b6 {[%clk 0:02:41]} 14.
c5 {[%clk 0:02:39.8]} 14... Qd7 {[%clk 0:02:33]} 15. Bf1 {[%clk 0:02:26.1]}
15... Bb7 {[%clk 0:02:16]} 16. Rab1 {[%clk 0:02:22.8]} 16... Rfd8 {[%clk
0:02:08.6]} 17. Nb3 {[%clk 0:02:13]} 17... Nxb3 {[%clk 0:02:01]} 18. axb3 {[%clk
0:02:13.8]} 18... Bd5 {[%clk 0:01:59.7]} 19. c4 {[%clk 0:02:14.5]} 19... Bf7
{[%clk 0:02:01.2]} 20. cxd6 {[%clk 0:02:12]} 20... cxd6 {[%clk 0:02:00.8]} 21.
Qd2 {[%clk 0:01:48.9]} 21... Rac8 {[%clk 0:01:56.2]} 22. Qb4 {[%clk 0:01:49.3]}
22... h5 {[%clk 0:01:47.4]} 23. Bb2 {[%clk 0:01:43.9]} 23... h4 {[%clk
0:01:45.5]} 24. Be2 {[%clk 0:01:23.2]} 24... Bh5 {[%clk 0:01:37.1]} 25. Bxh5
{[%clk 0:01:21.3]} 25... Nxh5 {[%clk 0:01:39]} 26. Ra1 {[%clk 0:01:18.6]} 26...
h3 {[%clk 0:01:31.8]} 27. d5 {[%clk 0:01:17.5]} 27... f4 {[%clk 0:01:25.3]} 28.
exf4 {[%clk 0:01:16.9]} 28... Qg4 {[%clk 0:01:17.4]} 29. Qd2 {[%clk 0:01:02.4]}
29... Qf3 {[%clk 0:01:15]} 30. Kf1 {[%clk 0:01:02]} 30... Nxg3+ {[%clk
0:01:10.5]} 31. Ke1 {[%clk 0:00:51.4]} 31... Qh1# {[%clk 0:01:09]} 0-1

[Event "*** Titled Tuesday Blitz"]
[Site "Chess.com"]
[Date "2018.11.06"]
[Round "6"]
[White "Lagmantr"]
[Black "Muisback26"]
[Result "0-1"]
[WhiteElo "2509"]
[BlackElo "2801"]
[TimeControl "180+2"]
[EndTime "14:18:57 PST"]
[Termination "Muisback26 won by resignation"]

1. e4 {[%clk 0:02:56.9]} 1... c5 {[%clk 0:03:00.6]} 2. Nf3 {[%clk 0:02:57.9]}
2... Nc6 {[%clk 0:03:01.5]} 3. d4 {[%clk 0:02:58]} 3... cxd4 {[%clk 0:03:03.4]}
4. Nxd4 {[%clk 0:02:59.9]} 4... Nf6 {[%clk 0:03:04.4]} 5. Nc3 {[%clk 0:03:01]}
5... e5 {[%clk 0:03:05.8]} 6. Ndb5 {[%clk 0:03:02]} 6... d6 {[%clk 0:03:07]} 7.
Bg5 {[%clk 0:03:03.4]} 7... a6 {[%clk 0:03:07.9]} 8. Na3 {[%clk 0:03:04.8]} 8...
Be6 {[%clk 0:03:09.2]} 9. Nc4 {[%clk 0:03:03.5]} 9... Rb8 {[%clk 0:03:10]} 10.
Ne3 {[%clk 0:02:59.7]} 10... Be7 {[%clk 0:03:10.7]} 11. Bxf6 {[%clk 0:02:52.1]}
11... Bxf6 {[%clk 0:03:12.6]} 12. Ncd5 {[%clk 0:02:52.1]} 12... Bg5 {[%clk
0:03:14]} 13. Be2 {[%clk 0:02:50.7]} 13... O-O {[%clk 0:03:14.8]} 14. O-O {[%clk
0:02:48]} 14... g6 {[%clk 0:03:15.7]} 15. Qd3 {[%clk 0:02:39.1]} 15... Kh8
{[%clk 0:03:16.2]} 16. Rad1 {[%clk 0:02:35.9]} 16... Bh6 {[%clk 0:03:14.9]} 17.
c3 {[%clk 0:02:30.8]} 17... f5 {[%clk 0:03:15.3]} 18. Kh1 {[%clk 0:02:15.8]}
18... Qh4 {[%clk 0:02:27.6]} 19. exf5 {[%clk 0:01:56.8]} 19... gxf5 {[%clk
0:02:27.8]} 20. Nc7 {[%clk 0:01:54.4]} 20... Bc8 {[%clk 0:02:05.9]} 21. Qxd6
{[%clk 0:01:49.7]} 21... f4 {[%clk 0:02:01.8]} 22. Nc4 {[%clk 0:00:54.8]} 22...
f3 {[%clk 0:01:57.4]} 23. g3 {[%clk 0:00:55.2]} 23... fxe2 {[%clk 0:01:40.4]}
24. gxh4 {[%clk 0:00:52.2]} 24... Bg4 {[%clk 0:01:41.4]} 25. Nxe5 {[%clk
0:00:22]} 25... Nxe5 {[%clk 0:01:34.9]} 26. Qxe5+ {[%clk 0:00:22]} 26... Bg7
{[%clk 0:01:35.7]} 27. Qd4 {[%clk 0:00:18]} 27... Bxd4 {[%clk 0:01:35.4]} 0-1

[Event "*** Titled Tuesday Blitz"]
[Site "Chess.com"]
[Date "2018.11.06"]
[Round "6"]
[White "EvgenyT"]
[Black "nearestway"]
[Result "1-0"]
[WhiteElo "2934"]
[BlackElo "2532"]
[TimeControl "180+2"]
[EndTime "14:19:00 PST"]
[Termination "EvgenyT won by resignation"]

1. c4 {[%clk 0:03:01.9]} 1... c5 {[%clk 0:03:00.4]} 2. Nf3 {[%clk 0:03:02.3]}
2... Nf6 {[%clk 0:03:00.8]} 3. Nc3 {[%clk 0:03:03.3]} 3... e6 {[%clk 0:03:01.7]}
4. g3 {[%clk 0:03:01.2]} 4... b6 {[%clk 0:03:02.4]} 5. Bg2 {[%clk 0:03:02.6]}
5... Bb7 {[%clk 0:03:03.4]} 6. O-O {[%clk 0:03:03.6]} 6... Be7 {[%clk
0:03:04.1]} 7. Re1 {[%clk 0:03:04.2]} 7... d5 {[%clk 0:03:04.4]} 8. cxd5 {[%clk
0:02:52]} 8... Nxd5 {[%clk 0:03:06.3]} 9. d4 {[%clk 0:02:53]} 9... cxd4 {[%clk
0:03:04.1]} 10. Qa4+ {[%clk 0:02:53.4]} 10... Bc6 {[%clk 0:02:31.2]} 11. Qxd4
{[%clk 0:02:49.3]} 11... Nxc3 {[%clk 0:02:26.1]} 12. Qxc3 {[%clk 0:02:24.9]}
12... O-O {[%clk 0:02:26.3]} 13. Bf4 {[%clk 0:02:21]} 13... Bf6 {[%clk
0:02:23.4]} 14. Be5 {[%clk 0:02:14.6]} 14... Bxe5 {[%clk 0:02:02.8]} 15. Nxe5
{[%clk 0:02:16.5]} 15... Bxg2 {[%clk 0:02:03.2]} 16. Kxg2 {[%clk 0:02:18.2]}
16... Qe7 {[%clk 0:01:47.5]} 17. Red1 {[%clk 0:02:07.9]} 17... Na6 {[%clk
0:01:30.6]} 18. Rac1 {[%clk 0:02:05.4]} 18... Qb7+ {[%clk 0:01:25.8]} 19. Qf3
{[%clk 0:02:05.8]} 19... Qxf3+ {[%clk 0:01:26.4]} 20. Kxf3 {[%clk 0:02:06.4]}
20... f6 {[%clk 0:01:25.9]} 21. Nc6 {[%clk 0:01:52.7]} 21... Rf7 {[%clk
0:01:09]} 22. Rd6 {[%clk 0:01:39.8]} 22... Re8 {[%clk 0:01:06.5]} 23. Nd4 {[%clk
0:01:25.2]} 23... Rfe7 {[%clk 0:01:02.2]} 24. a3 {[%clk 0:01:23.6]} 24... e5
{[%clk 0:00:49.7]} 25. Nf5 {[%clk 0:01:21]} 25... Rb7 {[%clk 0:00:44]} 26. b4
{[%clk 0:01:18.8]} 26... Nb8 {[%clk 0:00:39]} 27. Rcd1 {[%clk 0:01:15.3]} 27...
g6 {[%clk 0:00:37.6]} 28. Rd8 {[%clk 0:01:13.8]} 28... Rxd8 {[%clk 0:00:33.8]}
29. Rxd8+ {[%clk 0:01:14.1]} 1-0

[Event "*** Titled Tuesday Blitz"]
[Site "Chess.com"]
[Date "2018.11.06"]
[Round "6"]
[White "EphiphanyLord"]
[Black "PelinGorki"]
[Result "0-1"]
[WhiteElo "2574"]
[BlackElo "2631"]
[TimeControl "180+2"]
[EndTime "14:19:05 PST"]
[Termination "PelinGorki won by checkmate"]

1. e4 {[%clk 0:03:01.9]} 1... d6 {[%clk 0:03:00.2]} 2. d4 {[%clk 0:03:02.2]}
2... Nf6 {[%clk 0:03:01.6]} 3. Nc3 {[%clk 0:03:03.8]} 3... c6 {[%clk 0:03:02.4]}
4. Nf3 {[%clk 0:03:01.5]} 4... Bg4 {[%clk 0:03:02.2]} 5. Be3 {[%clk 0:03:00.4]}
5... e6 {[%clk 0:03:02.8]} 6. Be2 {[%clk 0:03:01.6]} 6... d5 {[%clk 0:03:03.2]}
7. exd5 {[%clk 0:03:01.4]} 7... cxd5 {[%clk 0:03:03.7]} 8. Ne5 {[%clk
0:02:56.5]} 8... Bxe2 {[%clk 0:03:02.1]} 9. Qxe2 {[%clk 0:02:58.4]} 9... a6
{[%clk 0:03:01.5]} 10. O-O {[%clk 0:02:58.2]} 10... Bd6 {[%clk 0:03:02.5]} 11.
f4 {[%clk 0:02:59.2]} 11... Nbd7 {[%clk 0:03:00.4]} 12. a4 {[%clk 0:02:57.2]}
12... O-O {[%clk 0:02:58.5]} 13. Rae1 {[%clk 0:02:58.2]} 13... Rc8 {[%clk
0:02:56.7]} 14. Kh1 {[%clk 0:02:56]} 14... Bb4 {[%clk 0:02:57.7]} 15. f5 {[%clk
0:02:47.5]} 15... Bxc3 {[%clk 0:02:55.7]} 16. bxc3 {[%clk 0:02:49.4]} 16... Ne4
{[%clk 0:02:55.7]} 17. c4 {[%clk 0:02:25.8]} 17... Nxe5 {[%clk 0:02:54.3]} 18.
dxe5 {[%clk 0:02:26.9]} 18... Rxc4 {[%clk 0:02:54.9]} 19. f6 {[%clk 0:02:26.6]}
19... g6 {[%clk 0:02:56]} 20. Qf3 {[%clk 0:02:16.3]} 20... Qc7 {[%clk
0:02:53.9]} 21. Bf4 {[%clk 0:02:08.2]} 21... Rxc2 {[%clk 0:02:48]} 22. Qh3
{[%clk 0:02:04.8]} 22... h5 {[%clk 0:02:48.3]} 23. Qh4 {[%clk 0:02:05.7]} 23...
Qc5 {[%clk 0:02:41.8]} 24. Be3 {[%clk 0:01:57.4]} 24... Qa3 {[%clk 0:02:34.4]}
25. Rf3 {[%clk 0:01:31.1]} 25... Rfc8 {[%clk 0:02:29]} 26. Qf4 {[%clk
0:01:19.1]} 26... R8c3 {[%clk 0:02:22.6]} 27. h4 {[%clk 0:01:04.3]} 27... Qf8
{[%clk 0:02:04.9]} 28. Rb1 {[%clk 0:00:59.8]} 28... b5 {[%clk 0:01:50.3]} 29.
axb5 {[%clk 0:00:59.2]} 29... axb5 {[%clk 0:01:52.2]} 30. Rxb5 {[%clk
0:00:58.7]} 30... Ra2 {[%clk 0:01:50.4]} 31. Rb1 {[%clk 0:00:46]} 31... Rcc2
{[%clk 0:01:48.2]} 32. Qh6 {[%clk 0:00:46]} 32... Qxh6 {[%clk 0:01:46.5]} 33.
Bxh6 {[%clk 0:00:47.5]} 33... Rxg2 {[%clk 0:01:48.1]} 34. Rb8+ {[%clk
0:00:37.7]} 34... Kh7 {[%clk 0:01:47.7]} 35. Bg7 {[%clk 0:00:39.2]} 35... Rh2+
{[%clk 0:01:41.8]} 36. Kg1 {[%clk 0:00:38.6]} 36... Rag2+ {[%clk 0:01:43.3]} 37.
Kf1 {[%clk 0:00:40.5]} 37... Nd2+ {[%clk 0:01:44.6]} 38. Ke1 {[%clk 0:00:42.4]}
38... Nxf3+ {[%clk 0:01:46.1]} 39. Kd1 {[%clk 0:00:44.3]} 39... Rg1# {[%clk
0:01:47.2]} 0-1

[Event "*** Titled Tuesday Blitz"]
[Site "Chess.com"]
[Date "2018.11.06"]
[Round "6"]
[White "matiss90"]
[Black "Federtiu"]
[Result "0-1"]
[WhiteElo "2420"]
[BlackElo "2623"]
[TimeControl "180+2"]
[EndTime "14:19:23 PST"]
[Termination "Federtiu won by resignation"]

1. e4 {[%clk 0:03:01.9]} 1... e5 {[%clk 0:03:00.3]} 2. Nf3 {[%clk 0:03:02.1]}
2... Nc6 {[%clk 0:03:01.8]} 3. Bb5 {[%clk 0:03:02.7]} 3... g6 {[%clk 0:03:03.2]}
4. d4 {[%clk 0:03:03]} 4... exd4 {[%clk 0:03:03.7]} 5. c3 {[%clk 0:03:04.2]}
5... Bg7 {[%clk 0:03:01.6]} 6. Bg5 {[%clk 0:03:02.1]} 6... Nge7 {[%clk
0:03:00.8]} 7. cxd4 {[%clk 0:03:02.7]} 7... a6 {[%clk 0:03:00.5]} 8. Bc4 {[%clk
0:03:03.4]} 8... h6 {[%clk 0:02:59.2]} 9. Bh4 {[%clk 0:03:03.6]} 9... b5 {[%clk
0:02:56.7]} 10. Bb3 {[%clk 0:03:03.8]} 10... O-O {[%clk 0:02:57.6]} 11. Nc3
{[%clk 0:03:04.5]} 11... d6 {[%clk 0:02:58.7]} 12. h3 {[%clk 0:03:04.5]} 12...
Bb7 {[%clk 0:02:55.4]} 13. O-O {[%clk 0:03:04.4]} 13... Re8 {[%clk 0:02:54]} 14.
Re1 {[%clk 0:03:03.9]} 14... Na5 {[%clk 0:02:55.2]} 15. Bc2 {[%clk 0:03:01.7]}
15... c5 {[%clk 0:02:56]} 16. Nd5 {[%clk 0:01:59.2]} 16... g5 {[%clk 0:02:30.8]}
17. Nxe7+ {[%clk 0:01:53.4]} 17... Qxe7 {[%clk 0:02:31.7]} 18. Bg3 {[%clk
0:01:54.1]} 18... Nc4 {[%clk 0:02:33.2]} 19. b3 {[%clk 0:01:51.5]} 19... Na3
{[%clk 0:02:34]} 20. Bd3 {[%clk 0:01:18.1]} 20... c4 {[%clk 0:02:29.4]} 21. bxc4
{[%clk 0:01:12.5]} 21... bxc4 {[%clk 0:02:30.4]} 22. Bf1 {[%clk 0:01:03.4]}
22... Bxe4 {[%clk 0:02:26.8]} 23. Nd2 {[%clk 0:01:04.2]} 23... d5 {[%clk
0:02:25]} 24. f3 {[%clk 0:01:04.9]} 24... Bxd4+ {[%clk 0:02:25]} 25. Kh2 {[%clk
0:01:04.1]} 25... Bxa1 {[%clk 0:02:26.1]} 26. fxe4 {[%clk 0:00:39.8]} 26... Be5
{[%clk 0:02:17.9]} 27. Bxe5 {[%clk 0:00:30.4]} 27... Qxe5+ {[%clk 0:02:11.6]}
28. Kh1 {[%clk 0:00:31.4]} 28... Rad8 {[%clk 0:02:08.4]} 29. Nf3 {[%clk
0:00:25.5]} 29... Qc3 {[%clk 0:02:02.3]} 30. e5 {[%clk 0:00:26.3]} 30... d4
{[%clk 0:02:02.1]} 31. Re4 {[%clk 0:00:18.8]} 31... d3 {[%clk 0:02:00.7]} 32.
Rg4 {[%clk 0:00:14.3]} 32... Qc2 {[%clk 0:02:01.2]} 33. Qe1 {[%clk 0:00:14.7]}
33... d2 {[%clk 0:02:02.5]} 34. Qg3 {[%clk 0:00:06.6]} 34... d1=Q {[%clk
0:02:03.7]} 35. Nxg5 {[%clk 0:00:05.9]} 35... Qxf1+ {[%clk 0:02:04]} 36. Kh2
{[%clk 0:00:06.9]} 36... Qcxg2+ {[%clk 0:02:02.1]} 37. Qxg2 {[%clk 0:00:07.9]}
37... Qxg2+ {[%clk 0:02:04]} 38. Rxg2 {[%clk 0:00:08.8]} 38... hxg5 {[%clk
0:02:05.7]} 0-1